Workbook

Sheet Data
B2: Polygon Data | J2: www.clearlyandsimply.com
E4: Maximum | F4: =MAX(tab_data[Latitude]) -> 83.6236 | G4: =MAX(tab_data[Longitude]) -> 180 | I4: Scale | J4: 2
E5: Minimum | F5: =MIN(tab_data[Latitude]) -> -90 | G5: =MIN(tab_data[Longitude]) -> -180 | I5: Left Offset | J5: 40
I6: Top Offset | J6: 80
B8: ISO 3 | C8: Country | D8: Polygon ID | E8: Point Order | F8: Latitude | G8: Longitude | H8: ID | I8: Y | J8: X
B9: ABW | C9: Aruba | D9: 1 | E9: 1 | F9: 12.4111 | G9: -69.8822 | H9: =tab_data[ISO 3]&"_"&tab_data[Polygon ID] -> ABW_1 | I9: =$J$6+$J$4*($F$4-tab_data[Latitude]) -> 222.425 | J9: =$J$5+$J$4*(tab_data[Longitude]-$G$5) -> 260.2356
B10: ABW | C10: Aruba | D10: 1 | E10: 2 | F10: 12.4367 | G10: -69.9469 | H10: =tab_data[ISO 3]&"_"&tab_data[Polygon ID] -> ABW_1 | I10: =$J$6+$J$4*($F$4-tab_data[Latitude]) -> 222.3738 | J10: =$J$5+$J$4*(tab_data[Longitude]-$G$5) -> 260.1062
B11: ABW | C11: Aruba | D11: 1 | E11: 3 | F11: 12.5344 | G11: -70.0561 | H11: =tab_data[ISO 3]&"_"&tab_data[Polygon ID] -> ABW_1 | I11: =$J$6+$J$4*($F$4-tab_data[Latitude]) -> 222.1784 | J11: =$J$5+$J$4*(tab_data[Longitude]-$G$5) -> 259.8878
B12: ABW | C12: Aruba | D12: 1 | E12: 4 | F12: 12.5381 | G12: -70.0594 | H12: =tab_data[ISO 3]&"_"&tab_data[Polygon ID] -> ABW_1 | I12: =$J$6+$J$4*($F$4-tab_data[Latitude]) -> 222.171 | J12: =$J$5+$J$4*(tab_data[Longitude]-$G$5) -> 259.8812
B13: ABW | C13: Aruba | D13: 1 | E13: 5 | F13: 12.5442 | G13: -70.0603 | H13: =tab_data[ISO 3]&"_"&tab_data[Polygon ID] -> ABW_1 | I13: =$J$6+$J$4*($F$4-tab_data[Latitude]) -> 222.1588 | J13: =$J$5+$J$4*(tab_data[Longitude]-$G$5) -> 259.8794
B14: ABW | C14: Aruba | D14: 1 | E14: 6 | F14: 12.6217 | G14: -70.0633 | H14: =tab_data[ISO 3]&"_"&tab_data[Polygon ID] -> ABW_1 | I14: =$J$6+$J$4*($F$4-tab_data[Latitude]) -> 222.0038 | J14: =$J$5+$J$4*(tab_data[Longitude]-$G$5) -> 259.8734
B15: ABW | C15: Aruba | D15: 1 | E15: 7 | F15: 12.6286 | G15: -70.0631 | H15: =tab_data[ISO 3]&"_"&tab_data[Polygon ID] -> ABW_1 | I15: =$J$6+$J$4*($F$4-tab_data[Latitude]) -> 221.99 | J15: =$J$5+$J$4*(tab_data[Longitude]-$G$5) -> 259.8738
B16: ABW | C16: Aruba | D16: 1 | E16: 8 | F16: 12.6311 | G16: -70.0589 | H16: =tab_data[ISO 3]&"_"&tab_data[Polygon ID] -> ABW_1 | I16: =$J$6+$J$4*($F$4-tab_data[Latitude]) -> 221.985 | J16: =$J$5+$J$4*(tab_data[Longitude]-$G$5) -> 259.8822
B17: ABW | C17: Aruba | D17: 1 | E17: 9 | F17: 12.6297 | G17: -70.0533 | H17: =tab_data[ISO 3]&"_"&tab_data[Polygon ID] -> ABW_1 | I17: =$J$6+$J$4*($F$4-tab_data[Latitude]) -> 221.9878 | J17: =$J$5+$J$4*(tab_data[Longitude]-$G$5) -> 259.8934
B18: ABW | C18: Aruba | D18: 1 | E18: 10 | F18: 12.6197 | G18: -70.0353 | H18: =tab_data[ISO 3]&"_"&tab_data[Polygon ID] -> ABW_1 | I18: =$J$6+$J$4*($F$4-tab_data[Latitude]) -> 222.0078 | J18: =$J$5+$J$4*(tab_data[Longitude]-$G$5) -> 259.9294
B19: ABW | C19: Aruba | D19: 1 | E19: 11 | F19: 12.6169 | G19: -70.0311 | H19: =tab_data[ISO 3]&"_"&tab_data[Polygon ID] -> ABW_1 | I19: =$J$6+$J$4*($F$4-tab_data[Latitude]) -> 222.0134 | J19: =$J$5+$J$4*(tab_data[Longitude]-$G$5) -> 259.9378
B20: ABW | C20: Aruba | D20: 1 | E20: 12 | F20: 12.5281 | G20: -69.9322 | H20: =tab_data[ISO 3]&"_"&tab_data[Polygon ID] -> ABW_1 | I20: =$J$6+$J$4*($F$4-tab_data[Latitude]) -> 222.191 | J20: =$J$5+$J$4*(tab_data[Longitude]-$G$5) -> 260.1356
B21: ABW | C21: Aruba | D21: 1 | E21: 13 | F21: 12.4808 | G21: -69.897 | H21: =tab_data[ISO 3]&"_"&tab_data[Polygon ID] -> ABW_1 | I21: =$J$6+$J$4*($F$4-tab_data[Latitude]) -> 222.2856 | J21: =$J$5+$J$4*(tab_data[Longitude]-$G$5) -> 260.206
B22: ABW | C22: Aruba | D22: 1 | E22: 14 | F22: 12.4722 | G22: -69.8914 | H22: =tab_data[ISO 3]&"_"&tab_data[Polygon ID] -> ABW_1 | I22: =$J$6+$J$4*($F$4-tab_data[Latitude]) -> 222.3028 | J22: =$J$5+$J$4*(tab_data[Longitude]-$G$5) -> 260.2172
B23: ABW | C23: Aruba | D23: 1 | E23: 15 | F23: 12.4578 | G23: -69.8856 | H23: =tab_data[ISO 3]&"_"&tab_data[Polygon ID] -> ABW_1 | I23: =$J$6+$J$4*($F$4-tab_data[Latitude]) -> 222.3316 | J23: =$J$5+$J$4*(tab_data[Longitude]-$G$5) -> 260.2288
B24: ABW | C24: Aruba | D24: 1 | E24: 16 | F24: 12.4219 | G24: -69.8739 | H24: =tab_data[ISO 3]&"_"&tab_data[Polygon ID] -> ABW_1 | I24: =$J$6+$J$4*($F$4-tab_data[Latitude]) -> 222.4034 | J24: =$J$5+$J$4*(tab_data[Longitude]-$G$5) -> 260.2522
B25: ABW | C25: Aruba | D25: 1 | E25: 17 | F25: 12.4158 | G25: -69.8733 | H25: =tab_data[ISO 3]&"_"&tab_data[Polygon ID] -> ABW_1 | I25: =$J$6+$J$4*($F$4-tab_data[Latitude]) -> 222.4156 | J25: =$J$5+$J$4*(tab_data[Longitude]-$G$5) -> 260.2534
B26: ABW | C26: Aruba | D26: 1 | E26: 18 | F26: 12.4117 | G26: -69.8761 | H26: =tab_data[ISO 3]&"_"&tab_data[Polygon ID] -> ABW_1 | I26: =$J$6+$J$4*($F$4-tab_data[Latitude]) -> 222.4238 | J26: =$J$5+$J$4*(tab_data[Longitude]-$G$5) -> 260.2478
B27: ABW | C27: Aruba | D27: 1 | E27: 19 | F27: 12.4111 | G27: -69.8822 | H27: =tab_data[ISO 3]&"_"&tab_data[Polygon ID] -> ABW_1 | I27: =$J$6+$J$4*($F$4-tab_data[Latitude]) -> 222.425 | J27: =$J$5+$J$4*(tab_data[Longitude]-$G$5) -> 260.2356
B28: AFG | C28: Afghanistan | D28: 1 | E28: 1 | F28: 37.2373 | G28: 74.9157 | H28: =tab_data[ISO 3]&"_"&tab_data[Polygon ID] -> AFG_1 | I28: =$J$6+$J$4*($F$4-tab_data[Latitude]) -> 172.7726 | J28: =$J$5+$J$4*(tab_data[Longitude]-$G$5) -> 549.8314
B29: AFG | C29: Afghanistan | D29: 1 | E29: 2 | F29: 37.2204 | G29: 74.8322 | H29: =tab_data[ISO 3]&"_"&tab_data[Polygon ID] -> AFG_1 | I29: =$J$6+$J$4*($F$4-tab_data[Latitude]) -> 172.8064 | J29: =$J$5+$J$4*(tab_data[Longitude]-$G$5) -> 549.6644
B30: AFG | C30: Afghanistan | D30: 1 | E30: 3 | F30: 37.219 | G30: 74.8169 | H30: =tab_data[ISO 3]&"_"&tab_data[Polygon ID] -> AFG_1 | I30: =$J$6+$J$4*($F$4-tab_data[Latitude]) -> 172.8092 | J30: =$J$5+$J$4*(tab_data[Longitude]-$G$5) -> 549.6338
B31: AFG | C31: Afghanistan | D31: 1 | E31: 4 | F31: 37.2204 | G31: 74.8111 | H31: =tab_data[ISO 3]&"_"&tab_data[Polygon ID] -> AFG_1 | I31: =$J$6+$J$4*($F$4-tab_data[Latitude]) -> 172.8064 | J31: =$J$5+$J$4*(tab_data[Longitude]-$G$5) -> 549.6222
B32: AFG | C32: Afghanistan | D32: 1 | E32: 5 | F32: 37.2235 | G32: 74.8053 | H32: =tab_data[ISO 3]&"_"&tab_data[Polygon ID] -> AFG_1 | I32: =$J$6+$J$4*($F$4-tab_data[Latitude]) -> 172.8002 | J32: =$J$5+$J$4*(tab_data[Longitude]-$G$5) -> 549.6106
B33: AFG | C33: Afghanistan | D33: 1 | E33: 6 | F33: 37.2276 | G33: 74.8011 | H33: =tab_data[ISO 3]&"_"&tab_data[Polygon ID] -> AFG_1 | I33: =$J$6+$J$4*($F$4-tab_data[Latitude]) -> 172.792 | J33: =$J$5+$J$4*(tab_data[Longitude]-$G$5) -> 549.6022
B34: AFG | C34: Afghanistan | D34: 1 | E34: 7 | F34: 37.2701 | G34: 74.775 | H34: =tab_data[ISO 3]&"_"&tab_data[Polygon ID] -> AFG_1 | I34: =$J$6+$J$4*($F$4-tab_data[Latitude]) -> 172.707 | J34: =$J$5+$J$4*(tab_data[Longitude]-$G$5) -> 549.55
B35: AFG | C35: Afghanistan | D35: 1 | E35: 8 | F35: 37.276 | G35: 74.7719 | H35: =tab_data[ISO 3]&"_"&tab_data[Polygon ID] -> AFG_1 | I35: =$J$6+$J$4*($F$4-tab_data[Latitude]) -> 172.6952 | J35: =$J$5+$J$4*(tab_data[Longitude]-$G$5) -> 549.5438
B36: AFG | C36: Afghanistan | D36: 1 | E36: 9 | F36: 37.2885 | G36: 74.7689 | H36: =tab_data[ISO 3]&"_"&tab_data[Polygon ID] -> AFG_1 | I36: =$J$6+$J$4*($F$4-tab_data[Latitude]) -> 172.6702 | J36: =$J$5+$J$4*(tab_data[Longitude]-$G$5) -> 549.5378
B37: AFG | C37: Afghanistan | D37: 1 | E37: 10 | F37: 37.301 | G37: 74.7633 | H37: =tab_data[ISO 3]&"_"&tab_data[Polygon ID] -> AFG_1 | I37: =$J$6+$J$4*($F$4-tab_data[Latitude]) -> 172.6452 | J37: =$J$5+$J$4*(tab_data[Longitude]-$G$5) -> 549.5266
B38: AFG | C38: Afghanistan | D38: 1 | E38: 11 | F38: 37.3032 | G38: 74.758 | H38: =tab_data[ISO 3]&"_"&tab_data[Polygon ID] -> AFG_1 | I38: =$J$6+$J$4*($F$4-tab_data[Latitude]) -> 172.6408 | J38: =$J$5+$J$4*(tab_data[Longitude]-$G$5) -> 549.516
B39: AFG | C39: Afghanistan | D39: 1 | E39: 12 | F39: 37.3038 | G39: 74.7511 | H39: =tab_data[ISO 3]&"_"&tab_data[Polygon ID] -> AFG_1 | I39: =$J$6+$J$4*($F$4-tab_data[Latitude]) -> 172.6396 | J39: =$J$5+$J$4*(tab_data[Longitude]-$G$5) -> 549.5022
B40: AFG | C40: Afghanistan | D40: 1 | E40: 13 | F40: 37.3027 | G40: 74.7433 | H40: =tab_data[ISO 3]&"_"&tab_data[Polygon ID] -> AFG_1 | I40: =$J$6+$J$4*($F$4-tab_data[Latitude]) -> 172.6418 | J40: =$J$5+$J$4*(tab_data[Longitude]-$G$5) -> 549.4866
B41: AFG | C41: Afghanistan | D41: 1 | E41: 14 | F41: 37.3001 | G41: 74.7361 | H41: =tab_data[ISO 3]&"_"&tab_data[Polygon ID] -> AFG_1 | I41: =$J$6+$J$4*($F$4-tab_data[Latitude]) -> 172.647 | J41: =$J$5+$J$4*(tab_data[Longitude]-$G$5) -> 549.4722
B42: AFG | C42: Afghanistan | D42: 1 | E42: 15 | F42: 37.266 | G42: 74.6694 | H42: =tab_data[ISO 3]&"_"&tab_data[Polygon ID] -> AFG_1 | I42: =$J$6+$J$4*($F$4-tab_data[Latitude]) -> 172.7152 | J42: =$J$5+$J$4*(tab_data[Longitude]-$G$5) -> 549.3388
B43: AFG | C43: Afghanistan | D43: 1 | E43: 16 | F43: 37.251 | G43: 74.6075 | H43: =tab_data[ISO 3]&"_"&tab_data[Polygon ID] -> AFG_1 | I43: =$J$6+$J$4*($F$4-tab_data[Latitude]) -> 172.7452 | J43: =$J$5+$J$4*(tab_data[Longitude]-$G$5) -> 549.215
B44: AFG | C44: Afghanistan | D44: 1 | E44: 17 | F44: 37.2429 | G44: 74.5372 | H44: =tab_data[ISO 3]&"_"&tab_data[Polygon ID] -> AFG_1 | I44: =$J$6+$J$4*($F$4-tab_data[Latitude]) -> 172.7614 | J44: =$J$5+$J$4*(tab_data[Longitude]-$G$5) -> 549.0744
B45: AFG | C45: Afghanistan | D45: 1 | E45: 18 | F45: 37.2418 | G45: 74.5297 | H45: =tab_data[ISO 3]&"_"&tab_data[Polygon ID] -> AFG_1 | I45: =$J$6+$J$4*($F$4-tab_data[Latitude]) -> 172.7636 | J45: =$J$5+$J$4*(tab_data[Longitude]-$G$5) -> 549.0594
B46: AFG | C46: Afghanistan | D46: 1 | E46: 19 | F46: 37.2393 | G46: 74.5222 | H46: =tab_data[ISO 3]&"_"&tab_data[Polygon ID] -> AFG_1 | I46: =$J$6+$J$4*($F$4-tab_data[Latitude]) -> 172.7686 | J46: =$J$5+$J$4*(tab_data[Longitude]-$G$5) -> 549.0444
B47: AFG | C47: Afghanistan | D47: 1 | E47: 20 | F47: 37.1784 | G47: 74.3972 | H47: =tab_data[ISO 3]&"_"&tab_data[Polygon ID] -> AFG_1 | I47: =$J$6+$J$4*($F$4-tab_data[Latitude]) -> 172.8904 | J47: =$J$5+$J$4*(tab_data[Longitude]-$G$5) -> 548.7944
B48: AFG | C48: Afghanistan | D48: 1 | E48: 21 | F48: 37.1751 | G48: 74.3922 | H48: =tab_data[ISO 3]&"_"&tab_data[Polygon ID] -> AFG_1 | I48: =$J$6+$J$4*($F$4-tab_data[Latitude]) -> 172.897 | J48: =$J$5+$J$4*(tab_data[Longitude]-$G$5) -> 548.7844
B49: AFG | C49: Afghanistan | D49: 1 | E49: 22 | F49: 37.1659 | G49: 74.3875 | H49: =tab_data[ISO 3]&"_"&tab_data[Polygon ID] -> AFG_1 | I49: =$J$6+$J$4*($F$4-tab_data[Latitude]) -> 172.9154 | J49: =$J$5+$J$4*(tab_data[Longitude]-$G$5) -> 548.775
B50: AFG | C50: Afghanistan | D50: 1 | E50: 23 | F50: 37.1606 | G50: 74.3867 | H50: =tab_data[ISO 3]&"_"&tab_data[Polygon ID] -> AFG_1 | I50: =$J$6+$J$4*($F$4-tab_data[Latitude]) -> 172.926 | J50: =$J$5+$J$4*(tab_data[Longitude]-$G$5) -> 548.7734
B51: AFG | C51: Afghanistan | D51: 1 | E51: 24 | F51: 37.154 | G51: 74.3894 | H51: =tab_data[ISO 3]&"_"&tab_data[Polygon ID] -> AFG_1 | I51: =$J$6+$J$4*($F$4-tab_data[Latitude]) -> 172.9392 | J51: =$J$5+$J$4*(tab_data[Longitude]-$G$5) -> 548.7788
B52: AFG | C52: Afghanistan | D52: 1 | E52: 25 | F52: 37.139 | G52: 74.4005 | H52: =tab_data[ISO 3]&"_"&tab_data[Polygon ID] -> AFG_1 | I52: =$J$6+$J$4*($F$4-tab_data[Latitude]) -> 172.9692 | J52: =$J$5+$J$4*(tab_data[Longitude]-$G$5) -> 548.801
B53: AFG | C53: Afghanistan | D53: 1 | E53: 26 | F53: 37.0492 | G53: 74.5289 | H53: =tab_data[ISO 3]&"_"&tab_data[Polygon ID] -> AFG_1 | I53: =$J$6+$J$4*($F$4-tab_data[Latitude]) -> 173.1488 | J53: =$J$5+$J$4*(tab_data[Longitude]-$G$5) -> 549.0578
B54: AFG | C54: Afghanistan | D54: 1 | E54: 27 | F54: 37.0278 | G54: 74.5654 | H54: =tab_data[ISO 3]&"_"&tab_data[Polygon ID] -> AFG_1 | I54: =$J$6+$J$4*($F$4-tab_data[Latitude]) -> 173.1916 | J54: =$J$5+$J$4*(tab_data[Longitude]-$G$5) -> 549.1308
B55: AFG | C55: Afghanistan | D55: 1 | E55: 28 | F55: 37.0267 | G55: 74.5683 | H55: =tab_data[ISO 3]&"_"&tab_data[Polygon ID] -> AFG_1 | I55: =$J$6+$J$4*($F$4-tab_data[Latitude]) -> 173.1938 | J55: =$J$5+$J$4*(tab_data[Longitude]-$G$5) -> 549.1366
B56: AFG | C56: Afghanistan | D56: 1 | E56: 29 | F56: 37.0203 | G56: 74.5725 | H56: =tab_data[ISO 3]&"_"&tab_data[Polygon ID] -> AFG_1 | I56: =$J$6+$J$4*($F$4-tab_data[Latitude]) -> 173.2066 | J56: =$J$5+$J$4*(tab_data[Longitude]-$G$5) -> 549.145
B57: AFG | C57: Afghanistan | D57: 1 | E57: 30 | F57: 37.0145 | G57: 74.573 | H57: =tab_data[ISO 3]&"_"&tab_data[Polygon ID] -> AFG_1 | I57: =$J$6+$J$4*($F$4-tab_data[Latitude]) -> 173.2182 | J57: =$J$5+$J$4*(tab_data[Longitude]-$G$5) -> 549.146
B58: AFG | C58: Afghanistan | D58: 1 | E58: 31 | F58: 36.9742 | G58: 74.5628 | H58: =tab_data[ISO 3]&"_"&tab_data[Polygon ID] -> AFG_1 | I58: =$J$6+$J$4*($F$4-tab_data[Latitude]) -> 173.2988 | J58: =$J$5+$J$4*(tab_data[Longitude]-$G$5) -> 549.1256
B59: AFG | C59: Afghanistan | D59: 1 | E59: 32 | F59: 36.9651 | G59: 74.558 | H59: =tab_data[ISO 3]&"_"&tab_data[Polygon ID] -> AFG_1 | I59: =$J$6+$J$4*($F$4-tab_data[Latitude]) -> 173.317 | J59: =$J$5+$J$4*(tab_data[Longitude]-$G$5) -> 549.116
B60: AFG | C60: Afghanistan | D60: 1 | E60: 33 | F60: 36.9617 | G60: 74.553 | H60: =tab_data[ISO 3]&"_"&tab_data[Polygon ID] -> AFG_1 | I60: =$J$6+$J$4*($F$4-tab_data[Latitude]) -> 173.3238 | J60: =$J$5+$J$4*(tab_data[Longitude]-$G$5) -> 549.106
B61: AFG | C61: Afghanistan | D61: 1 | E61: 34 | F61: 36.9592 | G61: 74.5455 | H61: =tab_data[ISO 3]&"_"&tab_data[Polygon ID] -> AFG_1 | I61: =$J$6+$J$4*($F$4-tab_data[Latitude]) -> 173.3288 | J61: =$J$5+$J$4*(tab_data[Longitude]-$G$5) -> 549.091
B62: AFG | C62: Afghanistan | D62: 1 | E62: 35 | F62: 36.9606 | G62: 74.5397 | H62: =tab_data[ISO 3]&"_"&tab_data[Polygon ID] -> AFG_1 | I62: =$J$6+$J$4*($F$4-tab_data[Latitude]) -> 173.326 | J62: =$J$5+$J$4*(tab_data[Longitude]-$G$5) -> 549.0794
B63: AFG | C63: Afghanistan | D63: 1 | E63: 36 | F63: 36.9637 | G63: 74.5347 | H63: =tab_data[ISO 3]&"_"&tab_data[Polygon ID] -> AFG_1 | I63: =$J$6+$J$4*($F$4-tab_data[Latitude]) -> 173.3198 | J63: =$J$5+$J$4*(tab_data[Longitude]-$G$5) -> 549.0694
B64: AFG | C64: Afghanistan | D64: 1 | E64: 37 | F64: 36.972 | G64: 74.5261 | H64: =tab_data[ISO 3]&"_"&tab_data[Polygon ID] -> AFG_1 | I64: =$J$6+$J$4*($F$4-tab_data[Latitude]) -> 173.3032 | J64: =$J$5+$J$4*(tab_data[Longitude]-$G$5) -> 549.0522
B65: AFG | C65: Afghanistan | D65: 1 | E65: 38 | F65: 36.9767 | G65: 74.5225 | H65: =tab_data[ISO 3]&"_"&tab_data[Polygon ID] -> AFG_1 | I65: =$J$6+$J$4*($F$4-tab_data[Latitude]) -> 173.2938 | J65: =$J$5+$J$4*(tab_data[Longitude]-$G$5) -> 549.045
B66: AFG | C66: Afghanistan | D66: 1 | E66: 39 | F66: 36.9884 | G66: 74.5164 | H66: =tab_data[ISO 3]&"_"&tab_data[Polygon ID] -> AFG_1 | I66: =$J$6+$J$4*($F$4-tab_data[Latitude]) -> 173.2704 | J66: =$J$5+$J$4*(tab_data[Longitude]-$G$5) -> 549.0328
B67: AFG | C67: Afghanistan | D67: 1 | E67: 40 | F67: 36.9984 | G67: 74.5089 | H67: =tab_data[ISO 3]&"_"&tab_data[Polygon ID] -> AFG_1 | I67: =$J$6+$J$4*($F$4-tab_data[Latitude]) -> 173.2504 | J67: =$J$5+$J$4*(tab_data[Longitude]-$G$5) -> 549.0178
B68: AFG | C68: Afghanistan | D68: 1 | E68: 41 | F68: 37.0026 | G68: 74.5044 | H68: =tab_data[ISO 3]&"_"&tab_data[Polygon ID] -> AFG_1 | I68: =$J$6+$J$4*($F$4-tab_data[Latitude]) -> 173.242 | J68: =$J$5+$J$4*(tab_data[Longitude]-$G$5) -> 549.0088
B69: AFG | C69: Afghanistan | D69: 1 | E69: 42 | F69: 37.0056 | G69: 74.4997 | H69: =tab_data[ISO 3]&"_"&tab_data[Polygon ID] -> AFG_1 | I69: =$J$6+$J$4*($F$4-tab_data[Latitude]) -> 173.236 | J69: =$J$5+$J$4*(tab_data[Longitude]-$G$5) -> 548.9994
B70: AFG | C70: Afghanistan | D70: 1 | E70: 43 | F70: 37.0103 | G70: 74.4889 | H70: =tab_data[ISO 3]&"_"&tab_data[Polygon ID] -> AFG_1 | I70: =$J$6+$J$4*($F$4-tab_data[Latitude]) -> 173.2266 | J70: =$J$5+$J$4*(tab_data[Longitude]-$G$5) -> 548.9778
B71: AFG | C71: Afghanistan | D71: 1 | E71: 44 | F71: 37.0109 | G71: 74.4822 | H71: =tab_data[ISO 3]&"_"&tab_data[Polygon ID] -> AFG_1 | I71: =$J$6+$J$4*($F$4-tab_data[Latitude]) -> 173.2254 | J71: =$J$5+$J$4*(tab_data[Longitude]-$G$5) -> 548.9644
B72: AFG | C72: Afghanistan | D72: 1 | E72: 45 | F72: 37.0103 | G72: 74.4678 | H72: =tab_data[ISO 3]&"_"&tab_data[Polygon ID] -> AFG_1 | I72: =$J$6+$J$4*($F$4-tab_data[Latitude]) -> 173.2266 | J72: =$J$5+$J$4*(tab_data[Longitude]-$G$5) -> 548.9356
B73: AFG | C73: Afghanistan | D73: 1 | E73: 46 | F73: 37.0014 | G73: 74.42 | H73: =tab_data[ISO 3]&"_"&tab_data[Polygon ID] -> AFG_1 | I73: =$J$6+$J$4*($F$4-tab_data[Latitude]) -> 173.2444 | J73: =$J$5+$J$4*(tab_data[Longitude]-$G$5) -> 548.84
B74: AFG | C74: Afghanistan | D74: 1 | E74: 47 | F74: 36.9986 | G74: 74.4139 | H74: =tab_data[ISO 3]&"_"&tab_data[Polygon ID] -> AFG_1 | I74: =$J$6+$J$4*($F$4-tab_data[Latitude]) -> 173.25 | J74: =$J$5+$J$4*(tab_data[Longitude]-$G$5) -> 548.8278
B75: AFG | C75: Afghanistan | D75: 1 | E75: 48 | F75: 36.9033 | G75: 74.2058 | H75: =tab_data[ISO 3]&"_"&tab_data[Polygon ID] -> AFG_1 | I75: =$J$6+$J$4*($F$4-tab_data[Latitude]) -> 173.4406 | J75: =$J$5+$J$4*(tab_data[Longitude]-$G$5) -> 548.4116
B76: AFG | C76: Afghanistan | D76: 1 | E76: 49 | F76: 36.8522 | G76: 74.1286 | H76: =tab_data[ISO 3]&"_"&tab_data[Polygon ID] -> AFG_1 | I76: =$J$6+$J$4*($F$4-tab_data[Latitude]) -> 173.5428 | J76: =$J$5+$J$4*(tab_data[Longitude]-$G$5) -> 548.2572
B77: AFG | C77: Afghanistan | D77: 1 | E77: 50 | F77: 36.8475 | G77: 74.1269 | H77: =tab_data[ISO 3]&"_"&tab_data[Polygon ID] -> AFG_1 | I77: =$J$6+$J$4*($F$4-tab_data[Latitude]) -> 173.5522 | J77: =$J$5+$J$4*(tab_data[Longitude]-$G$5) -> 548.2538
B78: AFG | C78: Afghanistan | D78: 1 | E78: 51 | F78: 36.8386 | G78: 74.1211 | H78: =tab_data[ISO 3]&"_"&tab_data[Polygon ID] -> AFG_1 | I78: =$J$6+$J$4*($F$4-tab_data[Latitude]) -> 173.57 | J78: =$J$5+$J$4*(tab_data[Longitude]-$G$5) -> 548.2422
B79: AFG | C79: Afghanistan | D79: 1 | E79: 52 | F79: 36.8361 | G79: 74.1139 | H79: =tab_data[ISO 3]&"_"&tab_data[Polygon ID] -> AFG_1 | I79: =$J$6+$J$4*($F$4-tab_data[Latitude]) -> 173.575 | J79: =$J$5+$J$4*(tab_data[Longitude]-$G$5) -> 548.2278
B80: AFG | C80: Afghanistan | D80: 1 | E80: 53 | F80: 36.8214 | G80: 74.0622 | H80: =tab_data[ISO 3]&"_"&tab_data[Polygon ID] -> AFG_1 | I80: =$J$6+$J$4*($F$4-tab_data[Latitude]) -> 173.6044 | J80: =$J$5+$J$4*(tab_data[Longitude]-$G$5) -> 548.1244
B81: AFG | C81: Afghanistan | D81: 1 | E81: 54 | F81: 36.8147 | G81: 74.0383 | H81: =tab_data[ISO 3]&"_"&tab_data[Polygon ID] -> AFG_1 | I81: =$J$6+$J$4*($F$4-tab_data[Latitude]) -> 173.6178 | J81: =$J$5+$J$4*(tab_data[Longitude]-$G$5) -> 548.0766
B82: AFG | C82: Afghanistan | D82: 1 | E82: 55 | F82: 36.8161 | G82: 74.0322 | H82: =tab_data[ISO 3]&"_"&tab_data[Polygon ID] -> AFG_1 | I82: =$J$6+$J$4*($F$4-tab_data[Latitude]) -> 173.615 | J82: =$J$5+$J$4*(tab_data[Longitude]-$G$5) -> 548.0644
B83: AFG | C83: Afghanistan | D83: 1 | E83: 56 | F83: 36.8374 | G83: 73.963 | H83: =tab_data[ISO 3]&"_"&tab_data[Polygon ID] -> AFG_1 | I83: =$J$6+$J$4*($F$4-tab_data[Latitude]) -> 173.5724 | J83: =$J$5+$J$4*(tab_data[Longitude]-$G$5) -> 547.926
B84: AFG | C84: Afghanistan | D84: 1 | E84: 57 | F84: 36.8422 | G84: 73.9522 | H84: =tab_data[ISO 3]&"_"&tab_data[Polygon ID] -> AFG_1 | I84: =$J$6+$J$4*($F$4-tab_data[Latitude]) -> 173.5628 | J84: =$J$5+$J$4*(tab_data[Longitude]-$G$5) -> 547.9044
B85: AFG | C85: Afghanistan | D85: 1 | E85: 58 | F85: 36.8583 | G85: 73.935 | H85: =tab_data[ISO 3]&"_"&tab_data[Polygon ID] -> AFG_1 | I85: =$J$6+$J$4*($F$4-tab_data[Latitude]) -> 173.5306 | J85: =$J$5+$J$4*(tab_data[Longitude]-$G$5) -> 547.87
B86: AFG | C86: Afghanistan | D86: 1 | E86: 59 | F86: 36.8686 | G86: 73.92 | H86: =tab_data[ISO 3]&"_"&tab_data[Polygon ID] -> AFG_1 | I86: =$J$6+$J$4*($F$4-tab_data[Latitude]) -> 173.51 | J86: =$J$5+$J$4*(tab_data[Longitude]-$G$5) -> 547.84
B87: AFG | C87: Afghanistan | D87: 1 | E87: 60 | F87: 36.8927 | G87: 73.8522 | H87: =tab_data[ISO 3]&"_"&tab_data[Polygon ID] -> AFG_1 | I87: =$J$6+$J$4*($F$4-tab_data[Latitude]) -> 173.4618 | J87: =$J$5+$J$4*(tab_data[Longitude]-$G$5) -> 547.7044
B88: AFG | C88: Afghanistan | D88: 1 | E88: 61 | F88: 36.8969 | G88: 73.8342 | H88: =tab_data[ISO 3]&"_"&tab_data[Polygon ID] -> AFG_1 | I88: =$J$6+$J$4*($F$4-tab_data[Latitude]) -> 173.4534 | J88: =$J$5+$J$4*(tab_data[Longitude]-$G$5) -> 547.6684
B89: AFG | C89: Afghanistan | D89: 1 | E89: 62 | F89: 36.8974 | G89: 73.8275 | H89: =tab_data[ISO 3]&"_"&tab_data[Polygon ID] -> AFG_1 | I89: =$J$6+$J$4*($F$4-tab_data[Latitude]) -> 173.4524 | J89: =$J$5+$J$4*(tab_data[Longitude]-$G$5) -> 547.655
B90: AFG | C90: Afghanistan | D90: 1 | E90: 63 | F90: 36.9096 | G90: 73.6683 | H90: =tab_data[ISO 3]&"_"&tab_data[Polygon ID] -> AFG_1 | I90: =$J$6+$J$4*($F$4-tab_data[Latitude]) -> 173.428 | J90: =$J$5+$J$4*(tab_data[Longitude]-$G$5) -> 547.3366
B91: AFG | C91: Afghanistan | D91: 1 | E91: 64 | F91: 36.9027 | G91: 73.6431 | H91: =tab_data[ISO 3]&"_"&tab_data[Polygon ID] -> AFG_1 | I91: =$J$6+$J$4*($F$4-tab_data[Latitude]) -> 173.4418 | J91: =$J$5+$J$4*(tab_data[Longitude]-$G$5) -> 547.2862
B92: AFG | C92: Afghanistan | D92: 1 | E92: 65 | F92: 36.8996 | G92: 73.6366 | H92: =tab_data[ISO 3]&"_"&tab_data[Polygon ID] -> AFG_1 | I92: =$J$6+$J$4*($F$4-tab_data[Latitude]) -> 173.448 | J92: =$J$5+$J$4*(tab_data[Longitude]-$G$5) -> 547.2732
B93: AFG | C93: Afghanistan | D93: 1 | E93: 66 | F93: 36.8807 | G93: 73.5436 | H93: =tab_data[ISO 3]&"_"&tab_data[Polygon ID] -> AFG_1 | I93: =$J$6+$J$4*($F$4-tab_data[Latitude]) -> 173.4858 | J93: =$J$5+$J$4*(tab_data[Longitude]-$G$5) -> 547.0872
B94: AFG | C94: Afghanistan | D94: 1 | E94: 67 | F94: 36.8802 | G94: 73.5364 | H94: =tab_data[ISO 3]&"_"&tab_data[Polygon ID] -> AFG_1 | I94: =$J$6+$J$4*($F$4-tab_data[Latitude]) -> 173.4868 | J94: =$J$5+$J$4*(tab_data[Longitude]-$G$5) -> 547.0728
B95: AFG | C95: Afghanistan | D95: 1 | E95: 68 | F95: 36.8916 | G95: 73.488 | H95: =tab_data[ISO 3]&"_"&tab_data[Polygon ID] -> AFG_1 | I95: =$J$6+$J$4*($F$4-tab_data[Latitude]) -> 173.464 | J95: =$J$5+$J$4*(tab_data[Longitude]-$G$5) -> 546.976
B96: AFG | C96: Afghanistan | D96: 1 | E96: 69 | F96: 36.8921 | G96: 73.4816 | H96: =tab_data[ISO 3]&"_"&tab_data[Polygon ID] -> AFG_1 | I96: =$J$6+$J$4*($F$4-tab_data[Latitude]) -> 173.463 | J96: =$J$5+$J$4*(tab_data[Longitude]-$G$5) -> 546.9632
B97: AFG | C97: Afghanistan | D97: 1 | E97: 70 | F97: 36.8893 | G97: 73.3894 | H97: =tab_data[ISO 3]&"_"&tab_data[Polygon ID] -> AFG_1 | I97: =$J$6+$J$4*($F$4-tab_data[Latitude]) -> 173.4686 | J97: =$J$5+$J$4*(tab_data[Longitude]-$G$5) -> 546.7788
B98: AFG | C98: Afghanistan | D98: 1 | E98: 71 | F98: 36.889 | G98: 73.3822 | H98: =tab_data[ISO 3]&"_"&tab_data[Polygon ID] -> AFG_1 | I98: =$J$6+$J$4*($F$4-tab_data[Latitude]) -> 173.4692 | J98: =$J$5+$J$4*(tab_data[Longitude]-$G$5) -> 546.7644
B99: AFG | C99: Afghanistan | D99: 1 | E99: 72 | F99: 36.8688 | G99: 73.0547 | H99: =tab_data[ISO 3]&"_"&tab_data[Polygon ID] -> AFG_1 | I99: =$J$6+$J$4*($F$4-tab_data[Latitude]) -> 173.5096 | J99: =$J$5+$J$4*(tab_data[Longitude]-$G$5) -> 546.1094
B100: AFG | C100: Afghanistan | D100: 1 | E100: 73 | F100: 36.8602 | G100: 72.9463 | H100: =tab_data[ISO 3]&"_"&tab_data[Polygon ID] -> AFG_1 | I100: =$J$6+$J$4*($F$4-tab_data[Latitude]) -> 173.5268 | J100: =$J$5+$J$4*(tab_data[Longitude]-$G$5) -> 545.8926
B101: AFG | C101: Afghanistan | D101: 1 | E101: 74 | F101: 36.8579 | G101: 72.938 | H101: =tab_data[ISO 3]&"_"&tab_data[Polygon ID] -> AFG_1 | I101: =$J$6+$J$4*($F$4-tab_data[Latitude]) -> 173.5314 | J101: =$J$5+$J$4*(tab_data[Longitude]-$G$5) -> 545.876
B102: AFG | C102: Afghanistan | D102: 1 | E102: 75 | F102: 36.8546 | G102: 72.933 | H102: =tab_data[ISO 3]&"_"&tab_data[Polygon ID] -> AFG_1 | I102: =$J$6+$J$4*($F$4-tab_data[Latitude]) -> 173.538 | J102: =$J$5+$J$4*(tab_data[Longitude]-$G$5) -> 545.866
B103: AFG | C103: Afghanistan | D103: 1 | E103: 76 | F103: 36.8466 | G103: 72.9244 | H103: =tab_data[ISO 3]&"_"&tab_data[Polygon ID] -> AFG_1 | I103: =$J$6+$J$4*($F$4-tab_data[Latitude]) -> 173.554 | J103: =$J$5+$J$4*(tab_data[Longitude]-$G$5) -> 545.8488
B104: AFG | C104: Afghanistan | D104: 1 | E104: 77 | F104: 36.8435 | G104: 72.9183 | H104: =tab_data[ISO 3]&"_"&tab_data[Polygon ID] -> AFG_1 | I104: =$J$6+$J$4*($F$4-tab_data[Latitude]) -> 173.5602 | J104: =$J$5+$J$4*(tab_data[Longitude]-$G$5) -> 545.8366
B105: AFG | C105: Afghanistan | D105: 1 | E105: 78 | F105: 36.8366 | G105: 72.8944 | H105: =tab_data[ISO 3]&"_"&tab_data[Polygon ID] -> AFG_1 | I105: =$J$6+$J$4*($F$4-tab_data[Latitude]) -> 173.574 | J105: =$J$5+$J$4*(tab_data[Longitude]-$G$5) -> 545.7888
B106: AFG | C106: Afghanistan | D106: 1 | E106: 79 | F106: 36.8346 | G106: 72.8725 | H106: =tab_data[ISO 3]&"_"&tab_data[Polygon ID] -> AFG_1 | I106: =$J$6+$J$4*($F$4-tab_data[Latitude]) -> 173.578 | J106: =$J$5+$J$4*(tab_data[Longitude]-$G$5) -> 545.745
B107: AFG | C107: Afghanistan | D107: 1 | E107: 80 | F107: 36.8338 | G107: 72.8583 | H107: =tab_data[ISO 3]&"_"&tab_data[Polygon ID] -> AFG_1 | I107: =$J$6+$J$4*($F$4-tab_data[Latitude]) -> 173.5796 | J107: =$J$5+$J$4*(tab_data[Longitude]-$G$5) -> 545.7166
B108: AFG | C108: Afghanistan | D108: 1 | E108: 81 | F108: 36.833 | G108: 72.8091 | H108: =tab_data[ISO 3]&"_"&tab_data[Polygon ID] -> AFG_1 | I108: =$J$6+$J$4*($F$4-tab_data[Latitude]) -> 173.5812 | J108: =$J$5+$J$4*(tab_data[Longitude]-$G$5) -> 545.6182
B109: AFG | C109: Afghanistan | D109: 1 | E109: 82 | F109: 36.8363 | G109: 72.7766 | H109: =tab_data[ISO 3]&"_"&tab_data[Polygon ID] -> AFG_1 | I109: =$J$6+$J$4*($F$4-tab_data[Latitude]) -> 173.5746 | J109: =$J$5+$J$4*(tab_data[Longitude]-$G$5) -> 545.5532
B110: AFG | C110: Afghanistan | D110: 1 | E110: 83 | F110: 36.8413 | G110: 72.7592 | H110: =tab_data[ISO 3]&"_"&tab_data[Polygon ID] -> AFG_1 | I110: =$J$6+$J$4*($F$4-tab_data[Latitude]) -> 173.5646 | J110: =$J$5+$J$4*(tab_data[Longitude]-$G$5) -> 545.5184
B111: AFG | C111: Afghanistan | D111: 1 | E111: 84 | F111: 36.8424 | G111: 72.7458 | H111: =tab_data[ISO 3]&"_"&tab_data[Polygon ID] -> AFG_1 | I111: =$J$6+$J$4*($F$4-tab_data[Latitude]) -> 173.5624 | J111: =$J$5+$J$4*(tab_data[Longitude]-$G$5) -> 545.4916
B112: AFG | C112: Afghanistan | D112: 1 | E112: 85 | F112: 36.8335 | G112: 72.6461 | H112: =tab_data[ISO 3]&"_"&tab_data[Polygon ID] -> AFG_1 | I112: =$J$6+$J$4*($F$4-tab_data[Latitude]) -> 173.5802 | J112: =$J$5+$J$4*(tab_data[Longitude]-$G$5) -> 545.2922
B113: AFG | C113: Afghanistan | D113: 1 | E113: 86 | F113: 36.8254 | G113: 72.5786 | H113: =tab_data[ISO 3]&"_"&tab_data[Polygon ID] -> AFG_1 | I113: =$J$6+$J$4*($F$4-tab_data[Latitude]) -> 173.5964 | J113: =$J$5+$J$4*(tab_data[Longitude]-$G$5) -> 545.1572
B114: AFG | C114: Afghanistan | D114: 1 | E114: 87 | F114: 36.8213 | G114: 72.5566 | H114: =tab_data[ISO 3]&"_"&tab_data[Polygon ID] -> AFG_1 | I114: =$J$6+$J$4*($F$4-tab_data[Latitude]) -> 173.6046 | J114: =$J$5+$J$4*(tab_data[Longitude]-$G$5) -> 545.1132
B115: AFG | C115: Afghanistan | D115: 1 | E115: 88 | F115: 36.8196 | G115: 72.5536 | H115: =tab_data[ISO 3]&"_"&tab_data[Polygon ID] -> AFG_1 | I115: =$J$6+$J$4*($F$4-tab_data[Latitude]) -> 173.608 | J115: =$J$5+$J$4*(tab_data[Longitude]-$G$5) -> 545.1072
B116: AFG | C116: Afghanistan | D116: 1 | E116: 89 | F116: 36.8163 | G116: 72.5522 | H116: =tab_data[ISO 3]&"_"&tab_data[Polygon ID] -> AFG_1 | I116: =$J$6+$J$4*($F$4-tab_data[Latitude]) -> 173.6146 | J116: =$J$5+$J$4*(tab_data[Longitude]-$G$5) -> 545.1044
B117: AFG | C117: Afghanistan | D117: 1 | E117: 90 | F117: 36.8132 | G117: 72.5489 | H117: =tab_data[ISO 3]&"_"&tab_data[Polygon ID] -> AFG_1 | I117: =$J$6+$J$4*($F$4-tab_data[Latitude]) -> 173.6208 | J117: =$J$5+$J$4*(tab_data[Longitude]-$G$5) -> 545.0978
B118: AFG | C118: Afghanistan | D118: 1 | E118: 91 | F118: 36.8027 | G118: 72.5358 | H118: =tab_data[ISO 3]&"_"&tab_data[Polygon ID] -> AFG_1 | I118: =$J$6+$J$4*($F$4-tab_data[Latitude]) -> 173.6418 | J118: =$J$5+$J$4*(tab_data[Longitude]-$G$5) -> 545.0716
B119: AFG | C119: Afghanistan | D119: 1 | E119: 92 | F119: 36.7785 | G119: 72.5025 | H119: =tab_data[ISO 3]&"_"&tab_data[Polygon ID] -> AFG_1 | I119: =$J$6+$J$4*($F$4-tab_data[Latitude]) -> 173.6902 | J119: =$J$5+$J$4*(tab_data[Longitude]-$G$5) -> 545.005
B120: AFG | C120: Afghanistan | D120: 1 | E120: 93 | F120: 36.7716 | G120: 72.4925 | H120: =tab_data[ISO 3]&"_"&tab_data[Polygon ID] -> AFG_1 | I120: =$J$6+$J$4*($F$4-tab_data[Latitude]) -> 173.704 | J120: =$J$5+$J$4*(tab_data[Longitude]-$G$5) -> 544.985
B121: AFG | C121: Afghanistan | D121: 1 | E121: 94 | F121: 36.7624 | G121: 72.4741 | H121: =tab_data[ISO 3]&"_"&tab_data[Polygon ID] -> AFG_1 | I121: =$J$6+$J$4*($F$4-tab_data[Latitude]) -> 173.7224 | J121: =$J$5+$J$4*(tab_data[Longitude]-$G$5) -> 544.9482
B122: AFG | C122: Afghanistan | D122: 1 | E122: 95 | F122: 36.761 | G122: 72.4667 | H122: =tab_data[ISO 3]&"_"&tab_data[Polygon ID] -> AFG_1 | I122: =$J$6+$J$4*($F$4-tab_data[Latitude]) -> 173.7252 | J122: =$J$5+$J$4*(tab_data[Longitude]-$G$5) -> 544.9334
B123: AFG | C123: Afghanistan | D123: 1 | E123: 96 | F123: 36.7624 | G123: 72.4066 | H123: =tab_data[ISO 3]&"_"&tab_data[Polygon ID] -> AFG_1 | I123: =$J$6+$J$4*($F$4-tab_data[Latitude]) -> 173.7224 | J123: =$J$5+$J$4*(tab_data[Longitude]-$G$5) -> 544.8132
B124: AFG | C124: Afghanistan | D124: 1 | E124: 97 | F124: 36.7557 | G124: 72.3306 | H124: =tab_data[ISO 3]&"_"&tab_data[Polygon ID] -> AFG_1 | I124: =$J$6+$J$4*($F$4-tab_data[Latitude]) -> 173.7358 | J124: =$J$5+$J$4*(tab_data[Longitude]-$G$5) -> 544.6612
B125: AFG | C125: Afghanistan | D125: 1 | E125: 98 | F125: 36.7318 | G125: 72.2342 | H125: =tab_data[ISO 3]&"_"&tab_data[Polygon ID] -> AFG_1 | I125: =$J$6+$J$4*($F$4-tab_data[Latitude]) -> 173.7836 | J125: =$J$5+$J$4*(tab_data[Longitude]-$G$5) -> 544.4684
B126: AFG | C126: Afghanistan | D126: 1 | E126: 99 | F126: 36.7271 | G126: 72.2186 | H126: =tab_data[ISO 3]&"_"&tab_data[Polygon ID] -> AFG_1 | I126: =$J$6+$J$4*($F$4-tab_data[Latitude]) -> 173.793 | J126: =$J$5+$J$4*(tab_data[Longitude]-$G$5) -> 544.4372
B127: AFG | C127: Afghanistan | D127: 1 | E127: 100 | F127: 36.7144 | G127: 72.1817 | H127: =tab_data[ISO 3]&"_"&tab_data[Polygon ID] -> AFG_1 | I127: =$J$6+$J$4*($F$4-tab_data[Latitude]) -> 173.8184 | J127: =$J$5+$J$4*(tab_data[Longitude]-$G$5) -> 544.3634
B128: AFG | C128: Afghanistan | D128: 1 | E128: 101 | F128: 36.7113 | G128: 72.1755 | H128: =tab_data[ISO 3]&"_"&tab_data[Polygon ID] -> AFG_1 | I128: =$J$6+$J$4*($F$4-tab_data[Latitude]) -> 173.8246 | J128: =$J$5+$J$4*(tab_data[Longitude]-$G$5) -> 544.351
B129: AFG | C129: Afghanistan | D129: 1 | E129: 102 | F129: 36.7077 | G129: 72.1705 | H129: =tab_data[ISO 3]&"_"&tab_data[Polygon ID] -> AFG_1 | I129: =$J$6+$J$4*($F$4-tab_data[Latitude]) -> 173.8318 | J129: =$J$5+$J$4*(tab_data[Longitude]-$G$5) -> 544.341
B130: AFG | C130: Afghanistan | D130: 1 | E130: 103 | F130: 36.703 | G130: 72.1689 | H130: =tab_data[ISO 3]&"_"&tab_data[Polygon ID] -> AFG_1 | I130: =$J$6+$J$4*($F$4-tab_data[Latitude]) -> 173.8412 | J130: =$J$5+$J$4*(tab_data[Longitude]-$G$5) -> 544.3378
B131: AFG | C131: Afghanistan | D131: 1 | E131: 104 | F131: 36.6971 | G131: 72.1694 | H131: =tab_data[ISO 3]&"_"&tab_data[Polygon ID] -> AFG_1 | I131: =$J$6+$J$4*($F$4-tab_data[Latitude]) -> 173.853 | J131: =$J$5+$J$4*(tab_data[Longitude]-$G$5) -> 544.3388
B132: AFG | C132: Afghanistan | D132: 1 | E132: 105 | F132: 36.6916 | G132: 72.1727 | H132: =tab_data[ISO 3]&"_"&tab_data[Polygon ID] -> AFG_1 | I132: =$J$6+$J$4*($F$4-tab_data[Latitude]) -> 173.864 | J132: =$J$5+$J$4*(tab_data[Longitude]-$G$5) -> 544.3454
B133: AFG | C133: Afghanistan | D133: 1 | E133: 106 | F133: 36.6819 | G133: 72.1811 | H133: =tab_data[ISO 3]&"_"&tab_data[Polygon ID] -> AFG_1 | I133: =$J$6+$J$4*($F$4-tab_data[Latitude]) -> 173.8834 | J133: =$J$5+$J$4*(tab_data[Longitude]-$G$5) -> 544.3622
B134: AFG | C134: Afghanistan | D134: 1 | E134: 107 | F134: 36.6477 | G134: 72.1458 | H134: =tab_data[ISO 3]&"_"&tab_data[Polygon ID] -> AFG_1 | I134: =$J$6+$J$4*($F$4-tab_data[Latitude]) -> 173.9518 | J134: =$J$5+$J$4*(tab_data[Longitude]-$G$5) -> 544.2916
B135: AFG | C135: Afghanistan | D135: 1 | E135: 108 | F135: 36.5419 | G135: 71.9733 | H135: =tab_data[ISO 3]&"_"&tab_data[Polygon ID] -> AFG_1 | I135: =$J$6+$J$4*($F$4-tab_data[Latitude]) -> 174.1634 | J135: =$J$5+$J$4*(tab_data[Longitude]-$G$5) -> 543.9466
B136: AFG | C136: Afghanistan | D136: 1 | E136: 109 | F136: 36.4161 | G136: 71.745 | H136: =tab_data[ISO 3]&"_"&tab_data[Polygon ID] -> AFG_1 | I136: =$J$6+$J$4*($F$4-tab_data[Latitude]) -> 174.415 | J136: =$J$5+$J$4*(tab_data[Longitude]-$G$5) -> 543.49
B137: AFG | C137: Afghanistan | D137: 1 | E137: 110 | F137: 36.4369 | G137: 71.7097 | H137: =tab_data[ISO 3]&"_"&tab_data[Polygon ID] -> AFG_1 | I137: =$J$6+$J$4*($F$4-tab_data[Latitude]) -> 174.3734 | J137: =$J$5+$J$4*(tab_data[Longitude]-$G$5) -> 543.4194
B138: AFG | C138: Afghanistan | D138: 1 | E138: 111 | F138: 36.4633 | G138: 71.6575 | H138: =tab_data[ISO 3]&"_"&tab_data[Polygon ID] -> AFG_1 | I138: =$J$6+$J$4*($F$4-tab_data[Latitude]) -> 174.3206 | J138: =$J$5+$J$4*(tab_data[Longitude]-$G$5) -> 543.315
B139: AFG | C139: Afghanistan | D139: 1 | E139: 112 | F139: 36.4678 | G139: 71.6467 | H139: =tab_data[ISO 3]&"_"&tab_data[Polygon ID] -> AFG_1 | I139: =$J$6+$J$4*($F$4-tab_data[Latitude]) -> 174.3116 | J139: =$J$5+$J$4*(tab_data[Longitude]-$G$5) -> 543.2934
B140: AFG | C140: Afghanistan | D140: 1 | E140: 113 | F140: 36.4672 | G140: 71.6395 | H140: =tab_data[ISO 3]&"_"&tab_data[Polygon ID] -> AFG_1 | I140: =$J$6+$J$4*($F$4-tab_data[Latitude]) -> 174.3128 | J140: =$J$5+$J$4*(tab_data[Longitude]-$G$5) -> 543.279
B141: AFG | C141: Afghanistan | D141: 1 | E141: 114 | F141: 36.4656 | G141: 71.6331 | H141: =tab_data[ISO 3]&"_"&tab_data[Polygon ID] -> AFG_1 | I141: =$J$6+$J$4*($F$4-tab_data[Latitude]) -> 174.316 | J141: =$J$5+$J$4*(tab_data[Longitude]-$G$5) -> 543.2662
B142: AFG | C142: Afghanistan | D142: 1 | E142: 115 | F142: 36.4581 | G142: 71.6242 | H142: =tab_data[ISO 3]&"_"&tab_data[Polygon ID] -> AFG_1 | I142: =$J$6+$J$4*($F$4-tab_data[Latitude]) -> 174.331 | J142: =$J$5+$J$4*(tab_data[Longitude]-$G$5) -> 543.2484
B143: AFG | C143: Afghanistan | D143: 1 | E143: 116 | F143: 36.4539 | G143: 71.6203 | H143: =tab_data[ISO 3]&"_"&tab_data[Polygon ID] -> AFG_1 | I143: =$J$6+$J$4*($F$4-tab_data[Latitude]) -> 174.3394 | J143: =$J$5+$J$4*(tab_data[Longitude]-$G$5) -> 543.2406
B144: AFG | C144: Afghanistan | D144: 1 | E144: 117 | F144: 36.4494 | G144: 71.6175 | H144: =tab_data[ISO 3]&"_"&tab_data[Polygon ID] -> AFG_1 | I144: =$J$6+$J$4*($F$4-tab_data[Latitude]) -> 174.3484 | J144: =$J$5+$J$4*(tab_data[Longitude]-$G$5) -> 543.235
B145: AFG | C145: Afghanistan | D145: 1 | E145: 118 | F145: 36.3886 | G145: 71.5909 | H145: =tab_data[ISO 3]&"_"&tab_data[Polygon ID] -> AFG_1 | I145: =$J$6+$J$4*($F$4-tab_data[Latitude]) -> 174.47 | J145: =$J$5+$J$4*(tab_data[Longitude]-$G$5) -> 543.1818
B146: AFG | C146: Afghanistan | D146: 1 | E146: 119 | F146: 36.3464 | G146: 71.5811 | H146: =tab_data[ISO 3]&"_"&tab_data[Polygon ID] -> AFG_1 | I146: =$J$6+$J$4*($F$4-tab_data[Latitude]) -> 174.5544 | J146: =$J$5+$J$4*(tab_data[Longitude]-$G$5) -> 543.1622
B147: AFG | C147: Afghanistan | D147: 1 | E147: 120 | F147: 36.2721 | G147: 71.4642 | H147: =tab_data[ISO 3]&"_"&tab_data[Polygon ID] -> AFG_1 | I147: =$J$6+$J$4*($F$4-tab_data[Latitude]) -> 174.703 | J147: =$J$5+$J$4*(tab_data[Longitude]-$G$5) -> 542.9284
B148: AFG | C148: Afghanistan | D148: 1 | E148: 121 | F148: 36.133 | G148: 71.2486 | H148: =tab_data[ISO 3]&"_"&tab_data[Polygon ID] -> AFG_1 | I148: =$J$6+$J$4*($F$4-tab_data[Latitude]) -> 174.9812 | J148: =$J$5+$J$4*(tab_data[Longitude]-$G$5) -> 542.4972
B149: AFG | C149: Afghanistan | D149: 1 | E149: 122 | F149: 36.1297 | G149: 71.2436 | H149: =tab_data[ISO 3]&"_"&tab_data[Polygon ID] -> AFG_1 | I149: =$J$6+$J$4*($F$4-tab_data[Latitude]) -> 174.9878 | J149: =$J$5+$J$4*(tab_data[Longitude]-$G$5) -> 542.4872
B150: AFG | C150: Afghanistan | D150: 1 | E150: 123 | F150: 36.0616 | G150: 71.1935 | H150: =tab_data[ISO 3]&"_"&tab_data[Polygon ID] -> AFG_1 | I150: =$J$6+$J$4*($F$4-tab_data[Latitude]) -> 175.124 | J150: =$J$5+$J$4*(tab_data[Longitude]-$G$5) -> 542.387
B151: AFG | C151: Afghanistan | D151: 1 | E151: 124 | F151: 36.0572 | G151: 71.1907 | H151: =tab_data[ISO 3]&"_"&tab_data[Polygon ID] -> AFG_1 | I151: =$J$6+$J$4*($F$4-tab_data[Latitude]) -> 175.1328 | J151: =$J$5+$J$4*(tab_data[Longitude]-$G$5) -> 542.3814
B152: AFG | C152: Afghanistan | D152: 1 | E152: 125 | F152: 36.0475 | G152: 71.1876 | H152: =tab_data[ISO 3]&"_"&tab_data[Polygon ID] -> AFG_1 | I152: =$J$6+$J$4*($F$4-tab_data[Latitude]) -> 175.1522 | J152: =$J$5+$J$4*(tab_data[Longitude]-$G$5) -> 542.3752
B153: AFG | C153: Afghanistan | D153: 1 | E153: 126 | F153: 36.0422 | G153: 71.1871 | H153: =tab_data[ISO 3]&"_"&tab_data[Polygon ID] -> AFG_1 | I153: =$J$6+$J$4*($F$4-tab_data[Latitude]) -> 175.1628 | J153: =$J$5+$J$4*(tab_data[Longitude]-$G$5) -> 542.3742
B154: AFG | C154: Afghanistan | D154: 1 | E154: 127 | F154: 36.0394 | G154: 71.1878 | H154: =tab_data[ISO 3]&"_"&tab_data[Polygon ID] -> AFG_1 | I154: =$J$6+$J$4*($F$4-tab_data[Latitude]) -> 175.1684 | J154: =$J$5+$J$4*(tab_data[Longitude]-$G$5) -> 542.3756
B155: AFG | C155: Afghanistan | D155: 1 | E155: 128 | F155: 36.0237 | G155: 71.2224 | H155: =tab_data[ISO 3]&"_"&tab_data[Polygon ID] -> AFG_1 | I155: =$J$6+$J$4*($F$4-tab_data[Latitude]) -> 175.1998 | J155: =$J$5+$J$4*(tab_data[Longitude]-$G$5) -> 542.4448
B156: AFG | C156: Afghanistan | D156: 1 | E156: 129 | F156: 35.9556 | G156: 71.3319 | H156: =tab_data[ISO 3]&"_"&tab_data[Polygon ID] -> AFG_1 | I156: =$J$6+$J$4*($F$4-tab_data[Latitude]) -> 175.336 | J156: =$J$5+$J$4*(tab_data[Longitude]-$G$5) -> 542.6638
B157: AFG | C157: Afghanistan | D157: 1 | E157: 130 | F157: 35.9208 | G157: 71.3828 | H157: =tab_data[ISO 3]&"_"&tab_data[Polygon ID] -> AFG_1 | I157: =$J$6+$J$4*($F$4-tab_data[Latitude]) -> 175.4056 | J157: =$J$5+$J$4*(tab_data[Longitude]-$G$5) -> 542.7656
B158: AFG | C158: Afghanistan | D158: 1 | E158: 131 | F158: 35.8747 | G158: 71.4355 | H158: =tab_data[ISO 3]&"_"&tab_data[Polygon ID] -> AFG_1 | I158: =$J$6+$J$4*($F$4-tab_data[Latitude]) -> 175.4978 | J158: =$J$5+$J$4*(tab_data[Longitude]-$G$5) -> 542.871
B159: AFG | C159: Afghanistan | D159: 1 | E159: 132 | F159: 35.8708 | G159: 71.44 | H159: =tab_data[ISO 3]&"_"&tab_data[Polygon ID] -> AFG_1 | I159: =$J$6+$J$4*($F$4-tab_data[Latitude]) -> 175.5056 | J159: =$J$5+$J$4*(tab_data[Longitude]-$G$5) -> 542.88
B160: AFG | C160: Afghanistan | D160: 1 | E160: 133 | F160: 35.8611 | G160: 71.4478 | H160: =tab_data[ISO 3]&"_"&tab_data[Polygon ID] -> AFG_1 | I160: =$J$6+$J$4*($F$4-tab_data[Latitude]) -> 175.525 | J160: =$J$5+$J$4*(tab_data[Longitude]-$G$5) -> 542.8956
B161: AFG | C161: Afghanistan | D161: 1 | E161: 134 | F161: 35.7111 | G161: 71.5453 | H161: =tab_data[ISO 3]&"_"&tab_data[Polygon ID] -> AFG_1 | I161: =$J$6+$J$4*($F$4-tab_data[Latitude]) -> 175.825 | J161: =$J$5+$J$4*(tab_data[Longitude]-$G$5) -> 543.0906
B162: AFG | C162: Afghanistan | D162: 1 | E162: 135 | F162: 35.6994 | G162: 71.5464 | H162: =tab_data[ISO 3]&"_"&tab_data[Polygon ID] -> AFG_1 | I162: =$J$6+$J$4*($F$4-tab_data[Latitude]) -> 175.8484 | J162: =$J$5+$J$4*(tab_data[Longitude]-$G$5) -> 543.0928
B163: AFG | C163: Afghanistan | D163: 1 | E163: 136 | F163: 35.6942 | G163: 71.5458 | H163: =tab_data[ISO 3]&"_"&tab_data[Polygon ID] -> AFG_1 | I163: =$J$6+$J$4*($F$4-tab_data[Latitude]) -> 175.8588 | J163: =$J$5+$J$4*(tab_data[Longitude]-$G$5) -> 543.0916
B164: AFG | C164: Afghanistan | D164: 1 | E164: 137 | F164: 35.6628 | G164: 71.528 | H164: =tab_data[ISO 3]&"_"&tab_data[Polygon ID] -> AFG_1 | I164: =$J$6+$J$4*($F$4-tab_data[Latitude]) -> 175.9216 | J164: =$J$5+$J$4*(tab_data[Longitude]-$G$5) -> 543.056
B165: AFG | C165: Afghanistan | D165: 1 | E165: 138 | F165: 35.5869 | G165: 71.5683 | H165: =tab_data[ISO 3]&"_"&tab_data[Polygon ID] -> AFG_1 | I165: =$J$6+$J$4*($F$4-tab_data[Latitude]) -> 176.0734 | J165: =$J$5+$J$4*(tab_data[Longitude]-$G$5) -> 543.1366
B166: AFG | C166: Afghanistan | D166: 1 | E166: 139 | F166: 35.5269 | G166: 71.6047 | H166: =tab_data[ISO 3]&"_"&tab_data[Polygon ID] -> AFG_1 | I166: =$J$6+$J$4*($F$4-tab_data[Latitude]) -> 176.1934 | J166: =$J$5+$J$4*(tab_data[Longitude]-$G$5) -> 543.2094
B167: AFG | C167: Afghanistan | D167: 1 | E167: 140 | F167: 35.4369 | G167: 71.6472 | H167: =tab_data[ISO 3]&"_"&tab_data[Polygon ID] -> AFG_1 | I167: =$J$6+$J$4*($F$4-tab_data[Latitude]) -> 176.3734 | J167: =$J$5+$J$4*(tab_data[Longitude]-$G$5) -> 543.2944
B168: AFG | C168: Afghanistan | D168: 1 | E168: 141 | F168: 35.4308 | G168: 71.6489 | H168: =tab_data[ISO 3]&"_"&tab_data[Polygon ID] -> AFG_1 | I168: =$J$6+$J$4*($F$4-tab_data[Latitude]) -> 176.3856 | J168: =$J$5+$J$4*(tab_data[Longitude]-$G$5) -> 543.2978
B169: AFG | C169: Afghanistan | D169: 1 | E169: 142 | F169: 35.425 | G169: 71.6494 | H169: =tab_data[ISO 3]&"_"&tab_data[Polygon ID] -> AFG_1 | I169: =$J$6+$J$4*($F$4-tab_data[Latitude]) -> 176.3972 | J169: =$J$5+$J$4*(tab_data[Longitude]-$G$5) -> 543.2988
B170: AFG | C170: Afghanistan | D170: 1 | E170: 143 | F170: 35.42 | G170: 71.6478 | H170: =tab_data[ISO 3]&"_"&tab_data[Polygon ID] -> AFG_1 | I170: =$J$6+$J$4*($F$4-tab_data[Latitude]) -> 176.4072 | J170: =$J$5+$J$4*(tab_data[Longitude]-$G$5) -> 543.2956
B171: AFG | C171: Afghanistan | D171: 1 | E171: 144 | F171: 35.4036 | G171: 71.6339 | H171: =tab_data[ISO 3]&"_"&tab_data[Polygon ID] -> AFG_1 | I171: =$J$6+$J$4*($F$4-tab_data[Latitude]) -> 176.44 | J171: =$J$5+$J$4*(tab_data[Longitude]-$G$5) -> 543.2678
B172: AFG | C172: Afghanistan | D172: 1 | E172: 145 | F172: 35.3997 | G172: 71.63 | H172: =tab_data[ISO 3]&"_"&tab_data[Polygon ID] -> AFG_1 | I172: =$J$6+$J$4*($F$4-tab_data[Latitude]) -> 176.4478 | J172: =$J$5+$J$4*(tab_data[Longitude]-$G$5) -> 543.26
B173: AFG | C173: Afghanistan | D173: 1 | E173: 146 | F173: 35.3897 | G173: 71.6169 | H173: =tab_data[ISO 3]&"_"&tab_data[Polygon ID] -> AFG_1 | I173: =$J$6+$J$4*($F$4-tab_data[Latitude]) -> 176.4678 | J173: =$J$5+$J$4*(tab_data[Longitude]-$G$5) -> 543.2338
B174: AFG | C174: Afghanistan | D174: 1 | E174: 147 | F174: 35.3683 | G174: 71.5875 | H174: =tab_data[ISO 3]&"_"&tab_data[Polygon ID] -> AFG_1 | I174: =$J$6+$J$4*($F$4-tab_data[Latitude]) -> 176.5106 | J174: =$J$5+$J$4*(tab_data[Longitude]-$G$5) -> 543.175
B175: AFG | C175: Afghanistan | D175: 1 | E175: 148 | F175: 35.3606 | G175: 71.5783 | H175: =tab_data[ISO 3]&"_"&tab_data[Polygon ID] -> AFG_1 | I175: =$J$6+$J$4*($F$4-tab_data[Latitude]) -> 176.526 | J175: =$J$5+$J$4*(tab_data[Longitude]-$G$5) -> 543.1566
B176: AFG | C176: Afghanistan | D176: 1 | E176: 149 | F176: 35.3528 | G176: 71.5705 | H176: =tab_data[ISO 3]&"_"&tab_data[Polygon ID] -> AFG_1 | I176: =$J$6+$J$4*($F$4-tab_data[Latitude]) -> 176.5416 | J176: =$J$5+$J$4*(tab_data[Longitude]-$G$5) -> 543.141
B177: AFG | C177: Afghanistan | D177: 1 | E177: 150 | F177: 35.3283 | G177: 71.5491 | H177: =tab_data[ISO 3]&"_"&tab_data[Polygon ID] -> AFG_1 | I177: =$J$6+$J$4*($F$4-tab_data[Latitude]) -> 176.5906 | J177: =$J$5+$J$4*(tab_data[Longitude]-$G$5) -> 543.0982
B178: AFG | C178: Afghanistan | D178: 1 | E178: 151 | F178: 35.3236 | G178: 71.5475 | H178: =tab_data[ISO 3]&"_"&tab_data[Polygon ID] -> AFG_1 | I178: =$J$6+$J$4*($F$4-tab_data[Latitude]) -> 176.6 | J178: =$J$5+$J$4*(tab_data[Longitude]-$G$5) -> 543.095
B179: AFG | C179: Afghanistan | D179: 1 | E179: 152 | F179: 35.3183 | G179: 71.5469 | H179: =tab_data[ISO 3]&"_"&tab_data[Polygon ID] -> AFG_1 | I179: =$J$6+$J$4*($F$4-tab_data[Latitude]) -> 176.6106 | J179: =$J$5+$J$4*(tab_data[Longitude]-$G$5) -> 543.0938
B180: AFG | C180: Afghanistan | D180: 1 | E180: 153 | F180: 35.3011 | G180: 71.5486 | H180: =tab_data[ISO 3]&"_"&tab_data[Polygon ID] -> AFG_1 | I180: =$J$6+$J$4*($F$4-tab_data[Latitude]) -> 176.645 | J180: =$J$5+$J$4*(tab_data[Longitude]-$G$5) -> 543.0972
B181: AFG | C181: Afghanistan | D181: 1 | E181: 154 | F181: 35.2947 | G181: 71.5503 | H181: =tab_data[ISO 3]&"_"&tab_data[Polygon ID] -> AFG_1 | I181: =$J$6+$J$4*($F$4-tab_data[Latitude]) -> 176.6578 | J181: =$J$5+$J$4*(tab_data[Longitude]-$G$5) -> 543.1006
B182: AFG | C182: Afghanistan | D182: 1 | E182: 155 | F182: 35.2842 | G182: 71.5575 | H182: =tab_data[ISO 3]&"_"&tab_data[Polygon ID] -> AFG_1 | I182: =$J$6+$J$4*($F$4-tab_data[Latitude]) -> 176.6788 | J182: =$J$5+$J$4*(tab_data[Longitude]-$G$5) -> 543.115
B183: AFG | C183: Afghanistan | D183: 1 | E183: 156 | F183: 35.2308 | G183: 71.6128 | H183: =tab_data[ISO 3]&"_"&tab_data[Polygon ID] -> AFG_1 | I183: =$J$6+$J$4*($F$4-tab_data[Latitude]) -> 176.7856 | J183: =$J$5+$J$4*(tab_data[Longitude]-$G$5) -> 543.2256
B184: AFG | C184: Afghanistan | D184: 1 | E184: 157 | F184: 35.1208 | G184: 71.5739 | H184: =tab_data[ISO 3]&"_"&tab_data[Polygon ID] -> AFG_1 | I184: =$J$6+$J$4*($F$4-tab_data[Latitude]) -> 177.0056 | J184: =$J$5+$J$4*(tab_data[Longitude]-$G$5) -> 543.1478
B185: AFG | C185: Afghanistan | D185: 1 | E185: 158 | F185: 35.0947 | G185: 71.5433 | H185: =tab_data[ISO 3]&"_"&tab_data[Polygon ID] -> AFG_1 | I185: =$J$6+$J$4*($F$4-tab_data[Latitude]) -> 177.0578 | J185: =$J$5+$J$4*(tab_data[Longitude]-$G$5) -> 543.0866
B186: AFG | C186: Afghanistan | D186: 1 | E186: 159 | F186: 35.0867 | G186: 71.5355 | H186: =tab_data[ISO 3]&"_"&tab_data[Polygon ID] -> AFG_1 | I186: =$J$6+$J$4*($F$4-tab_data[Latitude]) -> 177.0738 | J186: =$J$5+$J$4*(tab_data[Longitude]-$G$5) -> 543.071
B187: AFG | C187: Afghanistan | D187: 1 | E187: 160 | F187: 35.0775 | G187: 71.5314 | H187: =tab_data[ISO 3]&"_"&tab_data[Polygon ID] -> AFG_1 | I187: =$J$6+$J$4*($F$4-tab_data[Latitude]) -> 177.0922 | J187: =$J$5+$J$4*(tab_data[Longitude]-$G$5) -> 543.0628
B188: AFG | C188: Afghanistan | D188: 1 | E188: 161 | F188: 34.9842 | G188: 71.5031 | H188: =tab_data[ISO 3]&"_"&tab_data[Polygon ID] -> AFG_1 | I188: =$J$6+$J$4*($F$4-tab_data[Latitude]) -> 177.2788 | J188: =$J$5+$J$4*(tab_data[Longitude]-$G$5) -> 543.0062
B189: AFG | C189: Afghanistan | D189: 1 | E189: 162 | F189: 34.9663 | G189: 71.4989 | H189: =tab_data[ISO 3]&"_"&tab_data[Polygon ID] -> AFG_1 | I189: =$J$6+$J$4*($F$4-tab_data[Latitude]) -> 177.3146 | J189: =$J$5+$J$4*(tab_data[Longitude]-$G$5) -> 542.9978
B190: AFG | C190: Afghanistan | D190: 1 | E190: 163 | F190: 34.9639 | G190: 71.4989 | H190: =tab_data[ISO 3]&"_"&tab_data[Polygon ID] -> AFG_1 | I190: =$J$6+$J$4*($F$4-tab_data[Latitude]) -> 177.3194 | J190: =$J$5+$J$4*(tab_data[Longitude]-$G$5) -> 542.9978
B191: AFG | C191: Afghanistan | D191: 1 | E191: 164 | F191: 34.9594 | G191: 71.4961 | H191: =tab_data[ISO 3]&"_"&tab_data[Polygon ID] -> AFG_1 | I191: =$J$6+$J$4*($F$4-tab_data[Latitude]) -> 177.3284 | J191: =$J$5+$J$4*(tab_data[Longitude]-$G$5) -> 542.9922
B192: AFG | C192: Afghanistan | D192: 1 | E192: 165 | F192: 34.9556 | G192: 71.4925 | H192: =tab_data[ISO 3]&"_"&tab_data[Polygon ID] -> AFG_1 | I192: =$J$6+$J$4*($F$4-tab_data[Latitude]) -> 177.336 | J192: =$J$5+$J$4*(tab_data[Longitude]-$G$5) -> 542.985
B193: AFG | C193: Afghanistan | D193: 1 | E193: 166 | F193: 34.9519 | G193: 71.4878 | H193: =tab_data[ISO 3]&"_"&tab_data[Polygon ID] -> AFG_1 | I193: =$J$6+$J$4*($F$4-tab_data[Latitude]) -> 177.3434 | J193: =$J$5+$J$4*(tab_data[Longitude]-$G$5) -> 542.9756
B194: AFG | C194: Afghanistan | D194: 1 | E194: 167 | F194: 34.9458 | G194: 71.4758 | H194: =tab_data[ISO 3]&"_"&tab_data[Polygon ID] -> AFG_1 | I194: =$J$6+$J$4*($F$4-tab_data[Latitude]) -> 177.3556 | J194: =$J$5+$J$4*(tab_data[Longitude]-$G$5) -> 542.9516
B195: AFG | C195: Afghanistan | D195: 1 | E195: 168 | F195: 34.9153 | G195: 71.4022 | H195: =tab_data[ISO 3]&"_"&tab_data[Polygon ID] -> AFG_1 | I195: =$J$6+$J$4*($F$4-tab_data[Latitude]) -> 177.4166 | J195: =$J$5+$J$4*(tab_data[Longitude]-$G$5) -> 542.8044
B196: AFG | C196: Afghanistan | D196: 1 | E196: 169 | F196: 34.83 | G196: 71.2917 | H196: =tab_data[ISO 3]&"_"&tab_data[Polygon ID] -> AFG_1 | I196: =$J$6+$J$4*($F$4-tab_data[Latitude]) -> 177.5872 | J196: =$J$5+$J$4*(tab_data[Longitude]-$G$5) -> 542.5834
B197: AFG | C197: Afghanistan | D197: 1 | E197: 170 | F197: 34.7239 | G197: 71.1703 | H197: =tab_data[ISO 3]&"_"&tab_data[Polygon ID] -> AFG_1 | I197: =$J$6+$J$4*($F$4-tab_data[Latitude]) -> 177.7994 | J197: =$J$5+$J$4*(tab_data[Longitude]-$G$5) -> 542.3406
B198: AFG | C198: Afghanistan | D198: 1 | E198: 171 | F198: 34.6767 | G198: 71.0958 | H198: =tab_data[ISO 3]&"_"&tab_data[Polygon ID] -> AFG_1 | I198: =$J$6+$J$4*($F$4-tab_data[Latitude]) -> 177.8938 | J198: =$J$5+$J$4*(tab_data[Longitude]-$G$5) -> 542.1916
B199: AFG | C199: Afghanistan | D199: 1 | E199: 172 | F199: 34.6725 | G199: 71.0919 | H199: =tab_data[ISO 3]&"_"&tab_data[Polygon ID] -> AFG_1 | I199: =$J$6+$J$4*($F$4-tab_data[Latitude]) -> 177.9022 | J199: =$J$5+$J$4*(tab_data[Longitude]-$G$5) -> 542.1838
B200: AFG | C200: Afghanistan | D200: 1 | E200: 173 | F200: 34.6678 | G200: 71.0905 | H200: =tab_data[ISO 3]&"_"&tab_data[Polygon ID] -> AFG_1 | I200: =$J$6+$J$4*($F$4-tab_data[Latitude]) -> 177.9116 | J200: =$J$5+$J$4*(tab_data[Longitude]-$G$5) -> 542.181
B201: AFG | C201: Afghanistan | D201: 1 | E201: 174 | F201: 34.6572 | G201: 71.0894 | H201: =tab_data[ISO 3]&"_"&tab_data[Polygon ID] -> AFG_1 | I201: =$J$6+$J$4*($F$4-tab_data[Latitude]) -> 177.9328 | J201: =$J$5+$J$4*(tab_data[Longitude]-$G$5) -> 542.1788
B202: AFG | C202: Afghanistan | D202: 1 | E202: 175 | F202: 34.6514 | G202: 71.09 | H202: =tab_data[ISO 3]&"_"&tab_data[Polygon ID] -> AFG_1 | I202: =$J$6+$J$4*($F$4-tab_data[Latitude]) -> 177.9444 | J202: =$J$5+$J$4*(tab_data[Longitude]-$G$5) -> 542.18
B203: AFG | C203: Afghanistan | D203: 1 | E203: 176 | F203: 34.6453 | G203: 71.0917 | H203: =tab_data[ISO 3]&"_"&tab_data[Polygon ID] -> AFG_1 | I203: =$J$6+$J$4*($F$4-tab_data[Latitude]) -> 177.9566 | J203: =$J$5+$J$4*(tab_data[Longitude]-$G$5) -> 542.1834
... 4297 more rows

Sheet Output
B2: Output (freeform shape map) | K2: www.clearlyandsimply.com

Sheet XY Scatter
B2: XY Scatter Chart | K2: www.clearlyandsimply.com

Sheet XY Scatter Line
B2: XY Scatter Chart with Lines | K2: www.clearlyandsimply.com
